bitfinex/quotes_SOLUSD_20241022
["timestamp","ask_amount","ask_price","bid_price","bid_amount"]
[1729607982804,20.0,169.12,169.07,0.1]
[1729607983002,15.4012,169.15,169.1,0.1]
[1729607983199,5.9133,169.11,169.1,0.1]
[1729607983899,5.9136,169.1,169.09,0.1]
[1729607984108,5.9133,169.11,169.1,0.1]
[1729607984600,25.913,169.12,169.11,0.1]
[1729607985199,5.913,169.12,169.11,0.1]
[1729607985606,5.9122,169.14,169.13,0.1]
[1729607986304,5.9121,169.15,169.14,0.1]
[1729607988490,0.6295642,169.18,169.16,0.1]
[1729607988685,0.6295642,169.18,169.07,6.3593]
[1729607988686,0.6295642,169.18,169.17,0.1]
[1729607989288,6.5403642,169.18,169.17,0.1]
[1729607990715,5.9122,169.14,169.13,0.1]
[1729607992494,20.6295642,169.18,169.13,0.1]
[1729607992703,20.6295642,169.18,169.16,0.1]
[1729607992893,25.9112,169.17,169.16,0.1]
[1729607994599,5.9119,169.15,169.14,0.1]
[1729607995332,5.9122,169.14,169.13,0.1]
[1729607995923,38.554884,169.17,169.12,0.1]
[1729607995924,23.776884,169.17,169.12,0.1]
[1729607996100,23.776884,169.17,169.11,0.1]
[1729607996101,5.9129,169.12,169.11,0.1]
[1729607996298,20.0,169.16,169.09,0.1]
[1729607996496,5.9136,169.1,169.09,0.1]
[1729607998020,5.914,169.09,169.08,0.1]
[1729607998233,14.7826,169.12,169.07,0.1]
[1729607998534,29.5595,169.15,169.05,0.1]
[1729607998535,5.915,169.06,169.05,0.1]
[1729607998696,5.9157,169.04,169.03,0.1]
[1729608003526,20.9520981,169.12,169.07,0.1]
[1729608003824,5.9143,169.08,169.07,0.1]
[1729608004127,5.9133,169.11,169.1,0.1]
[1729608004302,5.9168,169.01,169.0,0.1]
[1729608004503,5.9171,169.0,168.98,0.1]
[1729608004827,15.8514,169.05,168.97,0.1]
[1729608005128,5.9185,168.96,168.95,0.1]
[1729608005805,14.7924,169.01,168.98,0.1]
[1729608006530,5.9178,168.98,168.97,0.1]
[1729608007600,14.7924,169.01,168.96,0.1]
[1729608007809,5.9182,168.97,168.96,0.1]
[1729608008851,5.9192,168.94,168.93,0.1]
[1729608009031,5.9192,168.94,168.77,28.90621699]
[1729608009032,6.6095,168.97,168.86,0.1]
[1729608009340,6.6095,168.97,168.85,0.1]
[1729608009341,5.922,168.86,168.85,0.1]
[1729608009653,14.8025,168.89,168.84,0.1]
[1729608009947,23.776884,168.89,168.83,0.1]
[1729608010117,5.9245,168.79,168.78,0.1]
[1729608010316,5.9231,168.83,168.82,0.1]
[1729608010716,14.8042,168.87,168.75,6.6174]
[1729608010717,14.8042,168.87,168.84,0.1]
[1729608010916,14.8042,168.87,168.83,0.1]
[1729608010917,5.9227,168.84,168.83,0.1]
[1729608011123,20.0,168.86,168.8,0.1]
[1729608011339,20.0,168.9,168.87,0.1]
[1729608011545,20.0,168.9,168.79,0.1]
[1729608011546,5.9217,168.87,168.86,0.1]
[1729608012347,20.0,168.9,168.89,0.1]
[1729608012524,25.9206,168.9,168.89,0.1]
[1729608012723,5.9206,168.9,168.89,0.1]
[1729608016330,5.9213,168.88,168.87,0.1]
[1729608016741,5.921,168.89,168.87,0.1]
[1729608016932,5.921,168.89,168.82,0.1]
[1729608016933,5.921,168.89,168.88,0.1]
[1729608018019,5.9203,168.91,168.9,0.1]
[1729608018224,5.9203,168.91,168.83,0.1]
[1729608018225,26.16363069,168.95,168.94,0.1]
[1729608018541,5.9189,168.95,168.94,0.1]
[1729608020130,5.9189,168.95,168.85,6.1005]
[1729608020131,6.16083564,168.99,168.98,0.1]
[1729608020335,5.9175,168.99,168.98,0.1]
[1729608021341,5.9164,169.02,169.01,0.1]
[1729608021645,12.19027111,169.05,168.91,0.1]
[1729608021646,5.9168,169.01,169.0,0.1]
[1729608022549,5.9171,169.0,168.99,0.1]
[1729608022750,5.9171,169.0,168.91,0.1]
[1729608022751,5.9178,168.98,168.97,0.1]
[1729608023641,29.5805,169.03,168.95,0.1]
[1729608023841,5.9182,168.97,168.96,0.1]
[1729608024051,20.0,169.03,168.94,0.1]
[1729608024355,5.9189,168.95,168.94,0.1]
[1729608025159,0.1,169.01,168.91,0.1]
[1729608025328,14.7973,168.95,168.9,0.1]
[1729608025647,5.9203,168.91,168.9,0.1]
[1729608026225,5.9189,168.95,168.94,0.1]
[1729608026849,5.9192,168.94,168.93,0.1]
[1729608027543,5.9199,168.92,168.91,0.1]
[1729608029140,15.2141,169.0,168.95,0.1]
[1729608029343,5.9185,168.96,168.95,0.1]
[1729608032956,5.9192,168.94,168.93,0.1]
[1729608033339,5.9196,168.93,168.92,0.1]
[1729608035175,5.9217,168.87,168.86,0.1]
[1729608036043,5.9227,168.84,168.83,0.1]
[1729608036766,29.598,168.93,168.77,6.3541]
[1729608036767,23.876884,168.92,168.81,0.1]
[1729608036970,28.13834209,168.97,168.74,16.0306]
[1729608036971,5.9241,168.8,168.79,0.1]
[1729608037881,5.9227,168.84,168.83,0.1]
[1729608039281,5.9234,168.82,168.81,0.1]
[1729608039956,23.876884,168.87,168.77,0.1]
[1729608040158,23.876884,168.86,168.76,0.1]
[1729608040361,5.9252,168.77,168.76,0.1]
[1729608040964,16.54264842,168.94,168.77,0.1]
[1729608041169,15.6057,168.96,168.91,0.1]
[1729608041368,15.6057,168.96,168.8,15.4604]
[1729608041369,15.6057,168.96,168.93,0.1]
[1729608041560,12.4365,169.0,168.96,0.1]
[1729608041766,12.4365,169.0,168.82,70.0]
[1729608041767,12.4365,169.0,168.95,0.1]
[1729608042078,6.5618,169.07,168.99,0.1]
[1729608042272,6.6618,169.07,168.98,0.1]
[1729608042464,6.5618,169.07,168.99,0.1]
[1729608043080,0.1,169.06,168.98,0.1]
[1729608043283,23.876884,169.06,168.97,0.1]
[1729608043580,23.776884,169.04,168.97,0.1]
[1729608043888,23.876884,169.06,168.97,0.1]
[1729608045570,23.776884,169.06,168.97,0.1]
[1729608046086,41.526884,169.06,168.95,0.1]
[1729608046287,6.5618,169.07,168.96,0.1]
[1729608046288,24.3118,169.07,168.96,0.1]
[1729608046669,0.1,169.05,168.95,0.1]
[1729608046990,0.1,169.02,168.93,0.1]
[1729608047364,0.1,169.02,168.86,6.5104]
[1729608047365,0.1,169.02,168.91,0.1]
[1729608047575,0.1,169.0,168.91,0.1]
[1729608047996,0.1,169.0,168.9,0.1]
[1729608048285,0.1,169.0,168.91,0.1]
[1729608048678,0.1,169.0,168.86,6.4104]
[1729608048679,0.1,169.0,168.9,0.1]
[1729608049080,0.1,169.0,168.91,0.1]
[1729608049276,0.1,169.0,168.9,0.1]
[1729608049509,59.8618,169.07,168.81,27.03549573]
[1729608049510,30.189584,168.97,168.87,0.1]
[1729608049795,30.189584,168.97,168.88,0.1]
[1729608050392,20.0,168.94,168.9,0.1]
[1729608050595,23.776884,168.93,168.89,0.1]
[1729608051396,23.776884,168.93,168.9,0.1]
[1729608052610,23.776884,168.93,168.89,0.1]
[1729608052772,23.776884,168.93,168.9,0.1]
[1729608053477,23.776884,168.93,168.88,0.1]
[1729608053985,23.776884,168.93,168.87,0.1]
[1729608054190,23.776884,168.91,168.87,0.1]
[1729608054692,23.776884,168.91,168.86,0.1]
[1729608055093,23.776884,168.91,168.81,6.5761]
[1729608055094,23.776884,168.89,168.85,0.1]
[1729608055274,23.776884,168.89,168.86,0.1]
[1729608056196,23.776884,168.87,168.83,0.1]
[1729608056387,23.776884,168.87,168.82,0.1]
[1729608056978,23.776884,168.87,168.84,0.1]
[1729608057194,23.776884,168.87,168.77,6.4661]
[1729608057195,23.776884,168.87,168.85,0.1]
[1729608058589,20.0,168.88,168.87,0.1]
[1729608058795,41.526884,168.94,168.87,0.1]
[1729608058994,20.0,168.91,168.87,0.1]
[1729608059303,6.17543953,168.96,168.88,0.1]
[1729608059602,37.75,168.96,168.88,0.1]
[1729608059804,16.543,168.98,168.8,0.1]
[1729608059805,22.61744059,168.98,168.89,0.1]
[1729608059977,22.61744059,168.98,168.82,0.1]
[1729608059978,24.61125241,168.98,168.91,0.1]
[1729608060182,24.61125241,168.98,168.88,0.1]
[1729608060183,24.71125241,168.98,168.88,0.1]
[1729608060395,24.71125241,168.98,168.91,0.1]
[1729608060700,42.46125241,168.98,168.91,0.1]
[1729608061092,42.36125241,168.98,168.91,0.1]
[1729608061291,22.61744059,168.98,168.94,0.1]
[1729608061498,6.17444059,168.98,168.94,0.1]
[1729608061804,24.0496,169.02,168.96,0.1]
[1729608063208,20.0,169.01,168.99,0.1]
[1729608063386,6.17698589,169.05,168.99,0.1]
[1729608064319,23.92698589,169.05,168.97,0.1]
[1729608064488,20.0,169.04,168.99,0.1]
[1729608065907,20.0,169.02,168.99,0.1]
[1729608066300,23.776884,169.01,168.99,0.1]
[1729608066898,23.776884,169.01,168.96,0.1]
[1729608067413,23.776884,169.01,168.98,0.1]
[1729608068303,23.776884,169.01,168.99,0.1]
[1729608068621,8.40357315,169.07,169.01,0.1]
[1729608068622,6.3939,169.07,169.01,0.1]
[1729608069300,6.3939,169.07,169.03,0.1]
[1729608069487,15.151,169.09,169.03,0.1]
[1729608070413,43.776884,169.08,168.99,0.1]
[1729608070715,43.776884,169.08,168.87,76.5975]
[1729608070716,43.776884,169.08,169.0,0.1]
[1729608071289,43.776884,169.08,169.01,0.1]
[1729608071703,43.776884,169.08,169.0,0.1]
[1729608072303,43.776884,169.08,169.01,0.1]
[1729608072794,43.776884,169.08,168.99,0.1]
[1729608073523,43.776884,169.08,169.01,0.1]
[1729608076314,43.776884,169.08,169.0,0.1]
[1729608076516,43.776884,169.06,169.0,0.1]
[1729608076909,43.776884,169.06,169.01,0.1]
[1729608077213,43.776884,169.06,169.0,0.1]
[1729608077419,43.776884,169.06,169.02,0.1]
[1729608077420,43.776884,169.04,169.02,0.1]
[1729608077616,43.776884,169.04,169.0,0.1]
[1729608077802,43.776884,169.04,169.02,0.1]
[1729608078502,43.776884,169.04,169.0,0.1]
[1729608078825,43.776884,169.04,169.02,0.1]
[1729608079201,49.691484,169.08,169.03,0.1]
[1729608079538,20.0,169.08,169.05,0.1]
[1729608079830,16.085,169.14,169.05,0.1]
[1729608080013,7.20208174,169.12,169.07,0.1]
[1729608080318,6.576,169.17,168.98,26.93549573]
[1729608080319,5.9118,169.16,169.13,0.1]
[1729608080539,5.9118,169.16,169.05,0.1]
[1729608080540,0.6295642,169.18,169.15,0.1]
[1729608080833,0.6295642,169.18,169.17,0.1]
[1729608084426,0.6295642,169.18,169.16,0.1]
[1729608084736,0.6295642,169.18,169.17,0.1]
[1729608088352,0.6295642,169.18,169.16,0.1]
[1729608088714,0.6295642,169.18,169.15,0.1]
[1729608089029,0.6295642,169.18,169.17,0.1]
[1729608089221,0.6295642,169.18,169.13,0.1]
[1729608089222,23.776884,169.17,169.13,0.1]
[1729608089430,29.688184,169.17,169.14,0.1]
[1729608089940,29.688184,169.17,169.12,0.1]
[1729608090130,5.9117,169.16,169.13,0.1]
[1729608090330,23.776884,169.15,169.13,0.1]
[1729608090526,23.776884,169.15,169.12,0.1]
[1729608090726,29.689784,169.13,169.08,0.1]
[1729608090933,5.9133,169.11,169.08,0.1]
[1729608091439,5.9112,169.17,169.12,0.1]
[1729608091622,43.776884,169.15,169.12,0.1]
[1729608092541,43.776884,169.15,169.1,0.1]
[1729608092755,23.776884,169.13,169.1,0.1]
[1729608093044,23.776884,169.14,169.12,0.1]
[1729608094943,23.776884,169.14,169.1,0.1]
[1729608095144,23.776884,169.12,169.1,0.1]
[1729608095540,20.0,169.17,169.12,0.1]
[1729608095739,25.9114,169.17,169.14,0.1]
[1729608096350,6.5404642,169.18,169.15,0.1]
[1729608096652,5.9112,169.17,169.15,0.1]
[1729608096821,5.9112,169.17,169.14,0.1]
[1729608097454,5.9112,169.17,169.15,0.1]
[1729608097651,5.9112,169.17,169.14,0.1]
[1729608098531,29.688384,169.16,169.13,0.1]
[1729608098750,5.9124,169.14,169.11,0.1]
[1729608098948,5.9128,169.13,169.1,0.1]
[1729608099121,20.0,169.16,169.13,0.1]
[1729608099326,5.9122,169.15,169.12,0.1]
[1729608100129,23.776884,169.15,169.1,0.1]
[1729608100431,20.0,169.12,169.08,0.1]
[1729608100651,23.776884,169.1,169.09,0.1]
[1729608101370,23.776884,169.1,169.08,0.1]
[1729608101649,14.7816,169.13,169.08,0.1]
[1729608101650,29.690884,169.09,169.08,0.1]
[1729608102431,5.914,169.09,169.08,0.1]
[1729608103447,29.690484,169.11,169.08,0.1]
[1729608103740,43.776884,169.1,169.09,0.1]
[1729608103945,49.690584,169.1,169.09,0.1]
[1729608104538,43.776884,169.1,169.09,0.1]
[1729608104736,49.690484,169.1,169.09,0.1]
[1729608105455,25.9136,169.1,169.09,0.1]
[1729608105662,14.7781,169.17,169.12,0.1]
[1729608105953,14.7781,169.17,169.03,0.2]
[1729608105954,0.6295642,169.18,169.14,0.1]
[1729608106338,5.9115,169.16,169.15,0.1]
[1729608106534,5.9112,169.17,169.16,0.1]
[1729608106759,0.6295642,169.18,169.17,0.1]
[1729608110154,6.5403642,169.18,169.17,0.1]
[1729608112565,30.3172482,169.18,169.17,0.1]
[1729608112957,0.6295642,169.18,169.17,0.1]
[1729608113468,6.5403642,169.18,169.17,0.1]
[1729608115346,5.9119,169.15,169.14,0.1]
[1729608115658,25.9113,169.17,169.16,0.1]
[1729608116561,6.5404642,169.18,169.17,0.1]
[1729608117764,0.6295642,169.18,169.17,0.1]
[1729608118775,6.5403642,169.18,169.17,0.1]
[1729608118941,0.6295642,169.18,169.17,0.1]
[1729608120067,6.5403642,169.18,169.17,0.1]
[1729608120364,0.6295642,169.18,169.17,0.1]
[1729608120884,6.5403642,169.18,169.17,0.1]
[1729608121987,0.6295642,169.18,169.17,0.1]
[1729608122686,6.5403642,169.18,169.17,0.1]
[1729608122876,5.9115,169.16,169.15,0.1]
[1729608123595,43.776884,169.15,169.12,0.1]
[1729608124067,0.6295642,169.18,169.15,0.1]
[1729608124274,43.776884,169.16,169.15,0.1]
[1729608124490,20.0,169.14,169.12,0.1]
[1729608124791,23.776884,169.13,169.11,0.1]
[1729608124977,23.776884,169.13,169.1,0.1]
[1729608125164,5.9133,169.11,169.1,0.1]
[1729608125361,29.690484,169.1,169.09,0.1]
[1729608125574,43.776884,169.09,169.05,0.1]
[1729608125865,5.9143,169.08,169.03,0.1]
[1729608126087,14.7823,169.13,169.08,0.1]
[1729608126256,5.9136,169.1,169.06,0.1]
[1729608126459,23.776884,169.09,169.08,0.1]
[1729608126681,5.913,169.12,169.11,0.1]
[1729608126981,29.688684,169.16,169.15,0.1]
[1729608127278,23.776884,169.15,169.09,0.1]
[1729608127469,23.776884,169.13,169.09,0.1]
[1729608127676,38.556684,169.15,169.11,0.1]
[1729608127888,5.9133,169.11,169.1,0.1]
[1729608129066,29.690684,169.1,169.09,0.1]
[1729608129266,20.0,169.13,169.1,0.1]
[1729608129459,29.690284,169.11,169.1,0.1]
[1729608131987,5.9128,169.13,169.11,0.1]
[1729608132283,5.912,169.15,169.13,0.1]
[1729608132586,5.9114,169.17,169.16,0.1]
[1729608132768,6.5403642,169.18,169.16,0.1]
[1729608133278,5.9112,169.17,169.16,0.1]
[1729608134061,29.688084,169.17,169.16,0.1]
[1729608136184,5.915,169.06,169.05,0.1]
[1729608136382,37.75,169.12,169.05,0.1]
[1729608136383,5.9147,169.07,169.05,0.1]
[1729608136584,23.776884,169.11,169.05,0.1]
[1729608136585,29.691984,169.06,169.05,0.1]
[1729608138891,23.776884,169.09,169.07,0.1]
[1729608139288,29.691184,169.08,169.07,0.1]
[1729608139496,37.0805,169.16,169.11,0.1]
[1729608139665,37.0805,169.16,169.12,0.1]
[1729608139994,5.9126,169.13,169.12,0.1]
[1729608140380,20.35063804,169.18,169.1,0.1]
[1729608140692,5.9133,169.11,169.1,0.1]
[1729608141070,5.913,169.12,169.1,0.1]
[1729608141276,23.776884,169.09,169.08,0.1]
[1729608141488,29.5571,169.17,169.1,0.1]
[1729608141489,14.7813,169.14,169.1,0.1]
[1729608141668,29.690384,169.11,169.1,0.1]
[1729608142282,5.914,169.09,169.08,0.1]
[1729608142791,5.9143,169.08,169.07,0.1]
[1729608143381,29.691184,169.08,169.07,0.1]
[1729608143707,5.9147,169.07,169.06,0.1]
[1729608144077,5.915,169.06,169.05,0.1]
[1729608145479,23.776884,169.14,169.09,0.1]
[1729608145682,23.776884,169.1,169.09,0.1]
[1729608145899,29.690484,169.1,169.09,0.1]
[1729608146803,5.9131,169.12,169.11,0.1]
[1729608147779,17.75,169.15,169.09,0.1]
[1729608147980,5.9139,169.1,169.09,0.1]
[1729608148505,29.689784,169.12,169.11,0.1]
[1729608150100,5.9129,169.12,169.11,0.1]
[1729608150604,32.5281,169.17,169.06,0.1]
[1729608150605,29.689484,169.14,169.13,0.1]
[1729608150785,5.9126,169.14,169.13,0.1]
[1729608151309,5.9126,169.13,169.08,0.1]
[1729608151496,5.9136,169.1,169.09,0.1]
[1729608151688,5.9131,169.12,169.1,0.1]
[1729608151990,29.690184,169.11,169.1,0.1]
[1729608152191,14.7787,169.17,169.12,0.1]
[1729608152386,23.776884,169.13,169.12,0.1]
[1729608153387,5.9121,169.15,169.14,0.1]
[1729608154911,5.9116,169.16,169.15,0.1]
[1729608155212,0.6295642,169.18,169.15,0.1]
[1729608155213,5.9114,169.17,169.15,0.1]
[1729608155507,5.9118,169.16,169.15,0.1]
[1729608156216,29.688684,169.16,169.15,0.1]
[1729608156626,5.9112,169.17,169.15,0.1]
[1729608156789,5.9112,169.17,169.08,6.0439]
[1729608156790,0.6295642,169.18,169.17,0.1]
[1729608159131,0.6295642,169.18,169.17,6.3761]
[1729608159832,0.6295642,169.18,169.17,6.2761]
[1729608160811,0.6295642,169.18,169.17,6.3761]
[1729608162926,32.515,169.32,169.27,0.1]
[1729608162927,29.684284,169.28,169.27,0.1]
[1729608163433,22.7046,169.34,169.31,0.1]
[1729608163836,5.9056,169.33,169.32,0.1]
[1729608164028,5.9061,169.32,169.31,0.1]
[1729608165733,29.682484,169.34,169.32,0.1]
[1729608165956,6.5346642,169.35,169.34,0.1]
[1729608166134,0.6295642,169.35,169.32,0.1]
[1729608166445,5.9056,169.33,169.32,0.1]
[1729608167317,0.6295642,169.35,169.32,0.1]
[1729608167622,5.9053,169.34,169.32,0.1]
[1729608168136,23.776884,169.33,169.29,0.1]
[1729608168313,29.683184,169.31,169.3,0.1]
[1729608168511,29.683184,169.31,169.2,18.33]
[1729608168512,5.907,169.3,169.28,0.1]
[1729608168736,20.0,169.29,169.21,0.1]
[1729608168943,23.776884,169.22,169.2,0.1]
[1729608169117,29.686684,169.21,169.2,0.1]
[1729608169519,90.2725,169.29,169.22,0.1]
[1729608169520,23.776884,169.28,169.22,0.1]
[1729608169820,29.685584,169.24,169.23,0.1]
[1729608170228,23.776884,169.24,169.23,0.1]
[1729608170434,22.9859,169.29,169.26,0.1]
[1729608170435,5.9077,169.27,169.26,0.1]
[1729608170716,29.684584,169.27,169.26,0.1]
[1729608170916,23.776884,169.27,169.26,0.1]
[1729608171648,29.684584,169.27,169.26,0.1]
[1729608172127,5.907,169.29,169.28,0.1]
[1729608172533,5.9077,169.27,169.26,0.1]
[1729608172848,40.1874,169.33,169.25,0.1]
[1729608173019,20.0,169.31,169.25,0.1]
[1729608173227,5.908,169.26,169.25,0.1]
[1729608173427,29.684884,169.26,169.25,0.1]
[1729608175042,5.9098,169.21,169.2,0.1]
[1729608175221,23.776884,169.25,169.2,0.1]
[1729608175546,38.548184,169.25,169.19,0.1]
[1729608175747,23.776884,169.2,169.19,0.1]
[1729608179037,5.9101,169.21,169.13,6.2972]
[1729608179038,29.686684,169.21,169.2,0.1]
[1729608179219,23.776884,169.2,169.18,0.1]
[1729608179424,29.687684,169.18,169.17,0.1]
[1729608179649,29.688784,169.15,169.14,0.1]
[1729608179831,29.689384,169.14,169.13,0.1]
[1729608180351,17.75,169.18,169.04,6.6036]
[1729608180352,23.776884,169.13,169.11,0.1]
[1729608180646,5.9133,169.11,169.1,0.1]
[1729608180948,29.690484,169.1,169.09,0.1]
[1729608181154,23.776884,169.1,169.09,0.1]
[1729608182231,23.776884,169.1,169.04,6.5036]
[1729608182232,5.9147,169.07,169.04,0.1]
[1729608182534,5.915,169.06,169.01,0.1]
[1729608182726,5.9163,169.03,169.01,0.1]
[1729608182935,23.776884,169.02,169.01,0.1]
[1729608184137,23.776884,169.02,169.0,0.1]
[1729608184833,23.776884,169.02,169.01,0.1]
[1729608185030,23.776884,169.02,169.0,0.1]
[1729608185251,23.776884,169.0,168.99,0.1]
[1729608186257,29.692284,169.05,169.03,0.1]
[1729608186550,29.692884,169.04,169.03,0.1]
[1729608187836,23.776884,169.04,169.03,0.1]
[1729608192247,22.5548,169.1,169.03,0.1]
[1729608192565,29.6607,169.15,168.93,20.0]
[1729608192566,5.914,169.09,169.08,0.1]
[1729608192862,5.9148,169.07,169.05,0.1]
[1729608193039,5.9148,169.07,169.04,0.1]
[1729608193239,5.9154,169.05,169.04,0.1]
[1729608193652,29.692284,169.05,169.04,0.1]
[1729608194268,23.776884,169.05,169.04,0.1]
[1729608196467,29.692284,169.05,169.04,0.1]
[1729608197061,23.776884,169.02,169.0,0.1]
[1729608197276,23.776884,169.0,168.98,0.1]
[1729608197466,23.776884,169.0,168.99,0.1]
[1729608197768,23.776884,169.0,168.98,0.1]
[1729608198270,5.9182,168.97,168.94,0.1]
[1729608198453,29.695684,168.96,168.95,0.1]
[1729608200468,23.776884,168.96,168.95,0.1]
[1729608200767,19.72015938,169.03,168.9,0.1]
[1729608200768,5.9161,169.03,168.98,0.1]
[1729608200970,20.0,169.03,168.98,0.1]
[1729608201154,20.0,169.03,168.97,0.1]
[1729608201155,5.9173,169.0,168.97,0.1]
[1729608201358,5.9174,169.0,168.98,0.1]
[1729608201748,5.9174,169.0,168.9,0.1]
[1729608201749,5.9182,168.97,168.95,0.1]
[1729608201943,5.9182,168.97,168.96,0.1]
[1729608202264,29.695084,168.97,168.96,0.1]
[1729608202468,23.776884,168.97,168.96,0.1]
[1729608203056,5.9164,169.02,169.0,0.1]
[1729608203253,5.9164,169.02,169.01,0.1]
[1729608203648,21.8769,169.06,169.02,0.1]
[1729608203862,5.916,169.04,169.02,0.1]
[1729608204354,5.9157,169.04,169.02,0.1]
[1729608204553,20.0,169.05,169.02,0.1]
[1729608204755,5.9161,169.03,169.02,0.1]
[1729608205054,23.776884,169.03,169.02,0.1]
[1729608205559,29.692984,169.03,169.02,0.1]
[1729608205762,29.692984,169.03,169.01,0.1]
[1729608205966,29.692984,169.03,169.02,0.1]
[1729608206159,17.75,169.1,169.02,0.1]
[1729608206361,17.75,169.1,168.97,6.4321]
[1729608206362,5.9144,169.08,169.06,0.1]
[1729608206550,5.9144,169.08,169.07,0.1]
[1729608206956,48.2641775,169.13,169.09,0.1]
[1729608207276,7.55751986,169.19,169.12,0.1]
[1729608207277,5.9124,169.14,169.12,0.1]
[1729608207659,5.9112,169.17,169.14,0.1]
[1729608208070,22.6459,169.18,169.05,0.1]
[1729608208071,5.9121,169.15,169.12,0.1]
[1729608208267,34.53133361,169.21,169.16,0.1]
[1729608208453,5.9106,169.19,169.17,0.1]
[1729608208957,5.9108,169.18,169.16,0.1]
[1729608209272,5.9108,169.18,169.17,0.1]
[1729608209482,5.9105,169.19,169.18,0.1]
[1729608209660,5.9098,169.21,169.2,0.1]
[1729608209978,14.771,169.25,169.19,0.1]
[1729608210156,5.9101,169.2,169.19,0.1]
[1729608210357,5.9073,169.28,169.23,0.1]
[1729608210569,5.9085,169.25,169.23,0.1]
[1729608211065,5.9087,169.24,169.23,0.1]
[1729608211253,5.9073,169.28,169.26,0.1]
[1729608211469,5.9073,169.28,169.27,0.1]
[1729608211672,1.97548766,169.31,169.27,0.1]
[1729608211881,5.9073,169.28,169.27,0.1]
[1729608212373,5.907,169.3,169.29,0.1]
[1729608212572,0.6295642,169.35,169.34,0.1]
[1729608213078,6.5344642,169.35,169.34,0.1]
[1729608213293,0.6295642,169.35,169.34,0.1]
[1729608213963,0.6295642,169.35,169.32,0.1]
[1729608215086,0.6295642,169.35,169.27,0.1]
[1729608215391,23.776884,169.28,169.26,0.1]
[1729608215568,29.684884,169.26,169.25,0.1]
[1729608215757,29.685284,169.25,169.24,0.1]
[1729608215957,32.516,169.31,169.23,0.1]
[1729608215958,29.685584,169.24,169.23,0.1]
[1729608216859,5.9094,169.22,169.21,0.1]
[1729608217054,23.776884,169.24,169.2,0.1]
[1729608217055,5.9098,169.21,169.2,0.1]
[1729608217253,29.686984,169.2,169.19,0.1]
[1729608218581,23.776884,169.19,169.18,0.1]
[1729608219196,5.9108,169.18,169.17,0.1]
[1729608219487,23.776884,169.15,169.13,0.1]
[1729608219691,5.9122,169.14,169.12,0.1]
[1729608219876,29.689484,169.13,169.12,0.1]
[1729608220287,29.689484,169.13,169.1,0.1]